[Event "FIDE WCCC G12 2018"]
[Site "Santiago de Compostela"]
[Date "2018.11.12"]
[Round "8"]
[White "Bravo Mallco, Kate Azumi"]
[Black "Wagner, Margarethe"]
[Result "0-1"]
[ECO "B54"]
[WhiteElo "1698"]
[BlackElo "1766"]
[Annotator "NA RC"]
[PlyCount "108"]
[EventDate "2018.11.04"]
[EventType "swiss"]
[EventCountry "ESP"]
[SourceTitle "playchess.com"]
[Source "ChessBase"]
[SourceQuality "1"]
[TimeControl "40/5400+30:1800+30"]

1. e4 {[%emt 0:00:00]} c5 {[%emt 0:00:00]} 2. Nf3 {[%emt 0:00:00]} d6 {[%emt 0:00:00]} 3. d4 {[%emt 0:00:00]} cxd4 {[%emt 0:00:00]} 4. Nxd4 {[%emt 0:00:01]} Nf6 {[%emt 0:00:34]} 5. f3 {[%emt 0:00:13]} a6 {[%emt 0:01:14]} 6. c4 {[%emt 0:00:18]} e5 {[%emt 0:03:02]} 7. Nc2 {[%emt 0:02:00]} Be6 {[%emt 0:02:02]} 8. Nc3 {[%emt 0:01:29]} Be7 {[%emt 0:02:06]} 9. Be3 {[%emt 0:00:47]} Nbd7 {[%emt 0:01:22]} 10. Qd2 {[%emt 0:00:57]} Rc8 {[%emt 0:03:08]} 11. Nd5 {[%emt 0:09:04]} Bxd5 {[%emt 0:03:46]} 12. cxd5 {[%emt 0:00:11]} Nc5 {[%emt 0:03:27]} 13. Be2 {[%emt 0:02:48]} Nh5 {[%emt 0:06:20]} 14. O-O {[%emt 0:06:18]} O-O {[%emt 0:02:43]} 15. Rfc1 {[%emt 0:02:42]} f5 {[%emt 0:08:17]} 16. exf5 {[%emt 0:04:57]} Rxf5 {[%emt 0:08:58]} 17. g4 {[%emt 0:04:28]} Rg5 {[%emt 0:01:11]} 18. Kh1 {[%emt 0:01:25]} Nf4 {[%emt 0:00:55]} 19. Bxf4 {[%emt 0:05:54]} exf4 {[%emt 0:00:31]} 20. Qxf4 {[%emt 0:01:50]} Re5 {[%emt 0:02:32]} 21. Bf1 {[%emt 0:29:49]} Bg5 {[%emt 0:02:37]} 22. Qb4 {[%emt 0:00:24]} Bxc1 {[%emt 0:01:38]} 23. Rxc1 {[%emt 0:00:02]} Qf6 {[%emt 0:03:47]} 24. Kg2 {[%emt 0:08:31]} Rf8 {[%emt 0:04:56]} 25. Qa3 {[%emt 0:03:56]} Qf4 {[%emt 0:03:51]} 26. Rd1 {[%emt 0:01:43]} Rfe8 {[%emt 0:05:46]} 27. Nd4 {[%emt 0:03:34]} Re3 {[%emt 0:05:20]} 28. Qa5 {[%emt 0:04:48]} h5 {[%emt 0:06:24]} 29. h3 {[%emt 0:04:28]} h4 {[%emt 0:00:12]} 30. Qd2 {[%emt 0:00:41]} Qg3+ {[%emt 0:02:23]} 31. Kh1 {[%emt 0:00:06]} Re1 {[%emt 0:03:28]} 32. Rxe1 {[%emt 0:01:25]} Rxe1 {[%emt 0:00:14]} 33. Qg2 {[%emt 0:00:20]} Qxg2+ {[%emt 0:02:02]} 34. Kxg2 {[%emt 0:00:01]} g6 {[%emt 0:02:02]} 35. b4 {[%emt 0:00:26]} Na4 {[%emt 0:03:08]} 36. b5 {[%emt 0:01:33]} Rd1 {[%emt 0:02:24]} 37. Nb3 {[%emt 0:00:45]} axb5 {[%emt 0:01:26]} 38. Bxb5 {[%emt 0:00:02]} Nc3 {[%emt 0:01:06]} 39. Be8 {[%emt 0:00:55]} Nxd5 {[%emt 0:00:55]} 40. Na5 {[%emt 0:00:00]} Nf4+ {[%emt 0:00:00]} 41. Kh2 {[%emt 0:00:50]} Rd2+ {[%emt 0:02:08]} 42. Kh1 {[%emt 0:00:12]} Rxa2 {[%emt 0:02:24]} 43. Nxb7 {[%emt 0:00:10]} d5 {[%emt 0:01:33]} 44. Nd6 {[%emt 0:00:23]} Kg7 {[%emt 0:01:17]} 45. Bb5 {[%emt 0:03:11]} d4 {[%emt 0:01:08]} 46. Bc4 {[%emt 0:00:32]} Ra1+ {[%emt 0:00:49]} 47. Kh2 {[%emt 0:00:06]} d3 {[%emt 0:00:14]} 48. Ne4 {[%emt 0:00:09]} Rb1 {[%emt 0:02:47]} 49. Nf2 {[%emt 0:00:29]} d2 {[%emt 0:00:38]} 50. Bb3 {[%emt 0:00:32]} Rxb3 {[%emt 0:00:23]} 51. Nd1 {[%emt 0:00:07]} Rb1 {[%emt 0:00:11]} 52. Nc3 {[%emt 0:00:08]} d1=Q {[%emt 0:00:12]} 53. Nxd1 {[%emt 0:00:07]} Rxd1 {[%emt 0:01:12]} 54. g5 {[%emt 0:00:02]} Rd2+ {[%emt 0:00:15]} 0-1

[Event "FIDE WCCC G12 2018"]
[Site "Santiago de Compostela"]
[Date "2018.11.12"]
[Round "8"]
[White "Denic, Hana"]
[Black "Hernandez Tellez, Claudia"]
[Result "1-0"]
[ECO "B34"]
[WhiteElo "1636"]
[BlackElo "1721"]
[Annotator "NA RC"]
[PlyCount "113"]
[EventDate "2018.11.04"]
[EventType "swiss"]
[EventCountry "ESP"]
[SourceTitle "playchess.com"]
[Source "ChessBase"]
[SourceQuality "1"]
[TimeControl "40/5400+30:1800+30"]

1. e4 {[%emt 0:00:00]} c5 {[%emt 0:00:00]} 2. Nf3 {[%emt 0:00:00]} Nc6 {[%emt 0:00:09]} 3. d4 {[%emt 0:00:00]} cxd4 {[%emt 0:00:24]} 4. Nxd4 {[%emt 0:00:05]} g6 {[%emt 0:00:28]} 5. Nc3 {[%emt 0:00:23]} Bg7 {[%emt 0:00:34]} 6. Nb3 {[%emt 0:00:29]} Nf6 {[%emt 0:01:10]} 7. Bg5 {[%emt 0:02:49]} O-O {[%emt 0:02:42]} 8. Qd2 {[%emt 0:01:55]} d6 {[%emt 0:01:56]} 9. O-O-O {[%emt 0:01:46]} Be6 {[%emt 0:05:30]} 10. f3 {[%emt 0:02:03]} a6 {[%emt 0:01:30]} 11. Kb1 {[%emt 0:03:05]} b5 {[%emt 0:08:00]} 12. g4 {[%emt 0:02:18]} Rc8 {[%emt 0:07:04]} 13. h4 {[%emt 0:11:26]} Bxb3 {[%emt 0:12:34]} 14. axb3 {[%emt 0:00:54]} Nb4 {[%emt 0:18:20]} 15. Bxf6 {[%emt 0:15:15]} Bxf6 {[%emt 0:02:24]} 16. Nd5 {[%emt 0:03:27]} Nxd5 {[%emt 0:01:24]} 17. Qxd5 {[%emt 0:01:05]} Rc5 {[%emt 0:03:28]} 18. Qd2 {[%emt 0:04:04]} Bg7 {[%emt 0:02:46]} 19. b4 {[%emt 0:02:06]} Rc8 {[%emt 0:02:19]} 20. h5 {[%emt 0:03:50]} h6 {[%emt 0:06:03]} 21. g5 {[%emt 0:10:58]} hxg5 {[%emt 0:00:29]} 22. Qxg5 {[%emt 0:01:02]} e6 {[%emt 0:03:36]} 23. Qe3 {[%emt 0:06:26]} Qf6 {[%emt 0:01:55]} 24. c3 {[%emt 0:00:19]} Rc6 {[%emt 0:00:09]} 25. h6 {[%emt 0:00:32]} Rfc8 {[%emt 0:02:02]} 26. hxg7 {[%emt 0:00:28]} Qxg7 {[%emt 0:00:05]} 27. Qh6 {[%emt 0:00:38]} Qxh6 {[%emt 0:00:06]} 28. Rxh6 {[%emt 0:00:06]} Kg7 {[%emt 0:00:03]} 29. Rh2 {[%emt 0:00:22]} f5 {[%emt 0:02:02]} 30. Re2 {[%emt 0:08:07]} Rh8 {[%emt 0:00:25]} 31. exf5 {[%emt 0:00:34]} exf5 {[%emt 0:00:09]} 32. Red2 {[%emt 0:02:18]} Rh1 {[%emt 0:00:33]} 33. Kc2 {[%emt 0:00:44]} Rb6 {[%emt 0:00:05]} 34. b3 {[%emt 0:01:32]} Rg1 {[%emt 0:01:00]} 35. Bg2 {[%emt 0:01:36]} Rxd1 {[%emt 0:00:18]} 36. Rxd1 {[%emt 0:00:08]} Kf6 {[%emt 0:00:04]} 37. Kd3 {[%emt 0:00:26]} Rb8 {[%emt 0:00:09]} 38. Kd4 {[%emt 0:00:36]} Rh8 {[%emt 0:00:15]} 39. c4 {[%emt 0:00:20]} Rh2 {[%emt 0:00:30]} 40. Bf1 {[%emt 0:00:00]} bxc4 {[%emt 0:00:00]} 41. bxc4 {[%emt 0:04:13]} Ke7 {[%emt 0:00:18]} 42. Ra1 {[%emt 0:01:00]} Rf2 {[%emt 0:00:19]} 43. Ke3 {[%emt 0:00:35]} Rb2 {[%emt 0:00:05]} 44. b5 {[%emt 0:00:25]} axb5 {[%emt 0:00:05]} 45. cxb5 {[%emt 0:00:06]} Rb3+ {[%emt 0:00:08]} 46. Kf4 {[%emt 0:02:20]} Kd8 {[%emt 0:00:09]} 47. Ra8+ {[%emt 0:02:54]} Kc7 {[%emt 0:00:07]} 48. Ra7+ {[%emt 0:02:13]} Kb6 {[%emt 0:00:15]} 49. Ra6+ {[%emt 0:01:42]} Kc7 {[%emt 0:00:08]} 50. Rc6+ {[%emt 0:01:43]} Kd7 {[%emt 0:00:10]} 51. Rc2 {[%emt 0:03:07]} Ke7 {[%emt 0:00:22]} 52. Rc7+ {[%emt 0:01:36]} Kd8 {[%emt 0:00:08]} 53. Rg7 {[%emt 0:01:31]} Rb1 {[%emt 0:00:05]} 54. Bd3 {[%emt 0:00:44]} Rb3 {[%emt 0:00:08]} 55. Ke3 {[%emt 0:00:42]} d5 {[%emt 0:00:09]} 56. Rxg6 {[%emt 0:01:44]} f4+ {[%emt 0:00:06]} 57. Kd4 {[%emt 0:00:43]} 1-0

[Event "FIDE WCCC G12 2018"]
[Site "Santiago de Compostela"]
[Date "2018.11.12"]
[Round "8"]
[White "Zavivaeva, Emilia"]
[Black "Mihelic, Vesna"]
[Result "1/2-1/2"]
[ECO "C75"]
[WhiteElo "1633"]
[BlackElo "1741"]
[Annotator "NA RC"]
[PlyCount "88"]
[EventDate "2018.11.04"]
[EventType "swiss"]
[EventCountry "ESP"]
[SourceTitle "playchess.com"]
[Source "ChessBase"]
[SourceQuality "1"]
[TimeControl "40/5400+30:1800+30"]

1. e4 {[%emt 0:00:00]} e5 {[%emt 0:00:00]} 2. Nf3 {[%emt 0:00:30]} Nc6 {[%emt 0:00:04]} 3. Bb5 {[%emt 0:00:17]} a6 {[%emt 0:00:29]} 4. Ba4 {[%emt 0:00:59]} d6 {[%emt 0:00:33]} 5. c3 {[%emt 0:01:56]} Bd7 {[%emt 0:02:27]} 6. d4 {[%emt 0:03:20]} Nge7 {[%emt 0:01:31]} 7. O-O {[%emt 0:11:57]} Ng6 {[%emt 0:06:16]} 8. Be3 {[%emt 0:06:13]} Be7 {[%emt 0:02:31]} 9. c4 {[%emt 0:07:05]} O-O {[%emt 0:03:46]} 10. d5 {[%emt 0:03:59]} Nb8 {[%emt 0:02:13]} 11. Bc2 {[%emt 0:01:53]} f5 {[%emt 0:07:09]} 12. exf5 {[%emt 0:06:31]} Bxf5 {[%emt 0:01:12]} 13. Bxf5 {[%emt 0:00:31]} Rxf5 {[%emt 0:00:13]} 14. Nc3 {[%emt 0:01:14]} Nf4 {[%emt 0:09:04]} 15. Qc2 {[%emt 0:07:20]} Qf8 {[%emt 0:01:34]} 16. Bxf4 {[%emt 0:02:32]} Rxf4 {[%emt 0:00:48]} 17. Ne2 {[%emt 0:05:10]} Rg4 {[%emt 0:03:50]} 18. h3 {[%emt 0:03:48]} Rg6 {[%emt 0:02:30]} 19. Ng3 {[%emt 0:00:19]} Nd7 {[%emt 0:03:50]} 20. Rae1 {[%emt 0:04:12]} a5 {[%emt 0:07:32]} 21. a3 {[%emt 0:05:27]} a4 {[%emt 0:01:01]} 22. Nd2 {[%emt 0:02:11]} Nc5 {[%emt 0:08:05]} 23. Nge4 {[%emt 0:05:39]} Qf5 {[%emt 0:02:42]} 24. Qc3 {[%emt 0:01:04]} Nxe4 {[%emt 0:01:41]} 25. Nxe4 {[%emt 0:01:03]} Bh4 {[%emt 0:02:16]} 26. c5 {[%emt 0:02:13]} Rf8 {[%emt 0:01:58]} 27. Re3 {[%emt 0:02:32]} Kh8 {[%emt 0:03:54]} 28. Kh1 {[%emt 0:01:41]} Qd7 {[%emt 0:03:27]} 29. Qb4 {[%emt 0:02:56]} Be7 {[%emt 0:02:50]} 30. Nc3 {[%emt 0:03:57]} Rgf6 {[%emt 0:04:52]} 31. Qxa4 {[%emt 0:04:14]} Qxa4 {[%emt 0:00:30]} 32. Nxa4 {[%emt 0:00:03]} Rxf2 {[%emt 0:00:32]} 33. Rxf2 {[%emt 0:00:02]} Rxf2 {[%emt 0:00:02]} 34. Rb3 {[%emt 0:01:58]} dxc5 {[%emt 0:01:15]} 35. Rxb7 {[%emt 0:00:25]} Bd6 {[%emt 0:00:24]} 36. Rb8+ {[%emt 0:01:22]} Rf8 {[%emt 0:00:01]} 37. Rxf8+ {[%emt 0:00:02]} Bxf8 {[%emt 0:00:02]} 38. Nc3 {[%emt 0:00:32]} c4 {[%emt 0:01:50]} 39. g4 {[%emt 0:01:38]} Kg8 {[%emt 0:00:41]} 40. Nb5 {[%emt 0:00:00]} Kf7 {[%emt 0:00:00]} 41. Nxc7 {[%emt 0:04:36]} Bxa3 {[%emt 0:07:19]} 42. Nb5 {[%emt 0:07:56]} Bxb2 {[%emt 0:05:41]} 43. Nd6+ {[%emt 0:00:15]} Kf6 {[%emt 0:00:42]} 44. Nxc4 {[%emt 0:00:13]} Bd4 {[%emt 0:00:28]} 1/2-1/2

[Event "FIDE WCCC G12 2018"]
[Site "Santiago de Compostela"]
[Date "2018.11.12"]
[Round "8"]
[White "Ke, Rianne"]
[Black "Volovich, Julia"]
[Result "0-1"]
[ECO "C10"]
[WhiteElo "1600"]
[BlackElo "1735"]
[Annotator "NA RC"]
[PlyCount "80"]
[EventDate "2018.11.04"]
[EventType "swiss"]
[EventCountry "ESP"]
[SourceTitle "playchess.com"]
[Source "ChessBase"]
[SourceQuality "1"]
[TimeControl "40/5400+30:1800+30"]

1. e4 {[%emt 0:00:00]} e6 {[%emt 0:00:00]} 2. d4 {[%emt 0:00:00]} d5 {[%emt 0:00:00]} 3. Nd2 {[%emt 0:00:00]} dxe4 {[%emt 0:00:00]} 4. Nxe4 {[%emt 0:00:00]} Nd7 {[%emt 0:00:00]} 5. Bd3 {[%emt 0:00:08]} Ngf6 {[%emt 0:00:00]} 6. Nxf6+ {[%emt 0:00:24]} Nxf6 {[%emt 0:00:03]} 7. Nf3 {[%emt 0:00:07]} c5 {[%emt 0:00:51]} 8. Be3 {[%emt 0:00:17]} Qc7 {[%emt 0:00:31]} 9. Qe2 {[%emt 0:07:04]} Be7 {[%emt 0:07:01]} 10. O-O-O {[%emt 0:03:42]} O-O {[%emt 0:04:09]} 11. Ne5 {[%emt 0:07:14]} a6 {[%emt 0:13:15]} 12. g4 {[%emt 0:04:17]} b5 {[%emt 0:05:42]} 13. g5 {[%emt 0:04:24]} Nd5 {[%emt 0:03:52]} 14. Bxh7+ {[%emt 0:27:03]} Kxh7 {[%emt 0:00:38]} 15. Qh5+ {[%emt 0:00:05]} Kg8 {[%emt 0:00:08]} 16. g6 {[%emt 0:00:30]} fxg6 {[%emt 0:02:07]} 17. Nxg6 {[%emt 0:00:29]} Rf5 {[%emt 0:12:58]} 18. Qh8+ {[%emt 0:00:25]} Kf7 {[%emt 0:00:10]} 19. Ne5+ {[%emt 0:01:56]} Rxe5 {[%emt 0:00:38]} 20. dxe5 {[%emt 0:00:04]} Qxe5 {[%emt 0:02:06]} 21. Rhe1 {[%emt 0:04:46]} Qf5 {[%emt 0:06:49]} 22. Rg1 {[%emt 0:08:38]} Bf6 {[%emt 0:03:19]} 23. Rg3 {[%emt 0:01:09]} Bb7 {[%emt 0:01:19]} 24. Qh3 {[%emt 0:01:02]} Qxh3 {[%emt 0:05:42]} 25. Rxh3 {[%emt 0:00:01]} c4 {[%emt 0:02:06]} 26. c3 {[%emt 0:03:18]} Rd8 {[%emt 0:03:37]} 27. Rg1 {[%emt 0:01:41]} b4 {[%emt 0:04:32]} 28. Bg5 {[%emt 0:01:39]} Bxg5+ {[%emt 0:06:10]} 29. Rxg5 {[%emt 0:00:02]} Nf4 {[%emt 0:02:37]} 30. Re3 {[%emt 0:07:07]} Nd3+ {[%emt 0:02:12]} 31. Kc2 {[%emt 0:01:00]} Nxf2 {[%emt 0:01:14]} 32. Rg1 {[%emt 0:03:45]} Be4+ {[%emt 0:00:49]} 33. Kc1 {[%emt 0:00:05]} Nd3+ {[%emt 0:00:51]} 34. Kc2 {[%emt 0:01:39]} b3+ {[%emt 0:02:17]} 35. Kd2 {[%emt 0:02:21]} Nxb2+ {[%emt 0:01:38]} 36. Ke2 {[%emt 0:01:14]} Bd3+ {[%emt 0:00:37]} 37. Kf2 {[%emt 0:01:16]} bxa2 {[%emt 0:00:22]} 38. Ra1 {[%emt 0:01:09]} Bb1 {[%emt 0:00:23]} 39. Re2 {[%emt 0:00:24]} Nd1+ {[%emt 0:03:28]} 40. Kf3 {[%emt 0:00:00]} Nxc3 {[%emt 0:00:00]} 0-1

[Event "FIDE WCCC G12 2018"]
[Site "Santiago de Compostela"]
[Date "2018.11.12"]
[Round "8"]
[White "Menon, Gauri"]
[Black "Van Foreest, Machteld"]
[Result "0-1"]
[ECO "A05"]
[WhiteElo "1592"]
[BlackElo "2003"]
[Annotator "NA RC"]
[PlyCount "70"]
[EventDate "2018.11.04"]
[EventType "swiss"]
[EventCountry "ESP"]
[SourceTitle "playchess.com"]
[Source "ChessBase"]
[SourceQuality "1"]
[TimeControl "40/5400+30:1800+30"]

{[%evp 8,69,11,0,16,-5,14,14,12,21,14,-9,-1,-21,-10,-23,-12,-39,-10,-18,-26,-35,-10,-15,0,0,-9,-65,-64,-48,-51,-216,-190,-349,-247,-423,-423,-622,-654,-643,32767,-650,-694,32767,32767,-613,-674,32767,-656,-661,32767,-731,-781,-1247,-1298,32767,32767,32767,-2596,-1699,-4398,-29998,-29999,-29999]} 1. Nf3 {[%emt 0:00:00]} Nf6 {[%emt 0:00:00]} 2. g3 {[%emt 0:00:00]} b6 {[%emt 0:00:02]} 3. Bg2 {[%emt 0:00:03]} Bb7 {[%emt 0:00:25]} 4. O-O {[%emt 0:00:14]} e6 {[%emt 0:00:32]} 5. d3 {[%emt 0:00:44]} d5 {[%emt 0:02:48]} 6. Nbd2 {[%emt 0:00:15]} Bd6 {[%emt 0:01:22] LiveBook: 4 Games A05: Réti Opening: 1 Nf3 Nf6} (6... Nbd7 7. Re1 Bc5 8. c4 O-O 9. a3 a5 10. cxd5 exd5 11. Nb3 Be7 12. Nbd4 Re8 13. Bf4 Nh5 14. Bd2 a4 15. b4 axb3 16. Qxb3 {½-½ (41) Anton Guijarro,D (2654)-Bruzon Batista,L (2643) Tbilisi 2017}) 7. e4 {[%emt 0:10:51]} Be7 {[%emt 0:31:26]} 8. c3 {[%emt 0:11:12]} O-O {[%emt 0:11:52]} 9. e5 $146 {[%emt 0:05:58]} ({Predecessor:} 9. Re1 Na6 10. e5 Nd7 11. Nf1 c5 12. h4 {1-0 (38) Agnihotri,A (85)-Pert,N (112) Hull 2018}) 9... Nfd7 {[%emt 0:04:10]} 10. d4 {[%emt 0:00:28]} c5 {[%emt 0:00:32]} 11. h3 {[%emt 0:06:18]} Nc6 {[%emt 0:01:11]} 12. Nb3 {[%emt 0:01:11]} Rc8 {[%emt 0:00:49]} (12... c4 $5 13. Nbd2 $8 b5 $11) 13. a3 {[%emt 0:02:31]} a5 {[%emt 0:02:20]} 14. Be3 {[%emt 0:09:32]} Ba6 {[%emt 0:03:54]} 15. Re1 {[%emt 0:00:49]} cxd4 {[%emt 0:01:06]} 16. cxd4 {[%emt 0:01:43]} b5 {[%emt 0:01:20]} 17. Nh2 {[%emt 0:06:27]} ({White should try} 17. Bf1 $11) 17... Nb6 {[%emt 0:04:59]} 18. Qg4 {[%emt 0:08:08]} Kh8 $1 {[%emt 0:00:54]} 19. f4 $2 {[%emt 0:04:55]} (19. Nf3 $15) 19... Nc4 {[%emt 0:01:44]} 20. f5 $2 {[%emt 0:07:03]} (20. Bf2) 20... exf5 {[%emt 0:00:51]} 21. Qxf5 $2 {[%emt 0:00:08]} (21. Qf4) 21... a4 {[%emt 0:00:47]} 22. Nc5 {[%emt 0:03:57]} (22. Bf2 $142 axb3 23. Qb1) 22... Nxe3 {[%emt 0:00:49]} 23. Qd3 {[%emt 0:11:15]} Nxg2 {[%emt 0:01:26]} 24. Kxg2 {[%emt 0:01:20]} Bxc5 {[%emt 0:00:27]} 25. dxc5 {[%emt 0:00:08]} d4 {[%emt 0:00:38]} 26. Nf3 {[%emt 0:00:49]} Qd5 {[%emt 0:00:47]} 27. Kh2 {[%emt 0:01:56]} h6 {[%emt 0:01:08]} 28. Rac1 {[%emt 0:01:44]} Bb7 {[%emt 0:02:13]} 29. Rc2 {[%emt 0:01:31]} Rfe8 {[%emt 0:01:40]} 30. Rf2 {[%emt 0:00:34]} Nxe5 {[%emt 0:00:36]} 31. Nxe5 {[%emt 0:00:55]} Rxe5 {[%emt 0:00:05]} 32. Ref1 {[%emt 0:00:28]} Rce8 {[%emt 0:00:07]} 33. h4 {[%emt 0:00:53]} Re1 {[%emt 0:00:30]} 34. Qd2 {[%emt 0:00:17] [#]} Qh1+ $1 {[%emt 0:00:15]} 35. Rxh1 {[%emt 0:00:13]} Rxh1# 0-1

[Event "FIDE WCCC G12 2018"]
[Site "Santiago de Compostela"]
[Date "2018.11.12"]
[Round "8"]
[White "Oz, Irem Ezra"]
[Black "Shuqja, Klean"]
[Result "1/2-1/2"]
[ECO "B01"]
[WhiteElo "1564"]
[BlackElo "1798"]
[Annotator "NA RC"]
[PlyCount "99"]
[EventDate "2018.11.04"]
[EventType "swiss"]
[EventCountry "ESP"]
[SourceTitle "playchess.com"]
[Source "ChessBase"]
[SourceQuality "1"]
[TimeControl "40/5400+30:1800+30"]

1. e4 {[%emt 0:00:00]} d5 {[%emt 0:00:00]} 2. exd5 {[%emt 0:00:19]} Qxd5 {[%emt 0:00:00]} 3. Nc3 {[%emt 0:00:37]} Qd8 {[%emt 0:00:00]} 4. d4 {[%emt 0:00:33]} Nf6 {[%emt 0:00:00]} 5. Nf3 {[%emt 0:00:53]} Bg4 {[%emt 0:00:00]} 6. h3 {[%emt 0:01:11]} Bxf3 {[%emt 0:00:00]} 7. Qxf3 {[%emt 0:00:12]} c6 {[%emt 0:00:00]} 8. Qd3 {[%emt 0:00:28]} e6 {[%emt 0:00:19]} 9. g3 {[%emt 0:00:38]} Nbd7 {[%emt 0:01:17]} 10. Bg2 {[%emt 0:00:25]} Be7 {[%emt 0:01:40]} 11. O-O {[%emt 0:00:54]} O-O {[%emt 0:00:05]} 12. Rd1 {[%emt 0:02:24]} Nb6 {[%emt 0:04:20]} 13. Ne2 {[%emt 0:02:43]} Qd7 {[%emt 0:02:00]} 14. c4 {[%emt 0:06:06]} Rfd8 {[%emt 0:06:50]} 15. b3 {[%emt 0:03:48]} h6 {[%emt 0:21:43]} 16. Bb2 {[%emt 0:02:56]} Ne8 {[%emt 0:05:46]} 17. Qc2 {[%emt 0:04:30]} Rac8 {[%emt 0:07:04]} 18. a4 {[%emt 0:03:24]} Nf6 {[%emt 0:08:40]} 19. a5 {[%emt 0:05:52]} Na8 {[%emt 0:00:28]} 20. Bc3 {[%emt 0:01:55]} Nc7 {[%emt 0:03:10]} 21. Nf4 {[%emt 0:02:23]} Qe8 {[%emt 0:03:02]} 22. Nd3 {[%emt 0:02:37]} Nd7 {[%emt 0:03:50]} 23. Qb2 {[%emt 0:11:07]} Bf6 {[%emt 0:02:07]} 24. Ne5 {[%emt 0:10:00]} Nxe5 {[%emt 0:04:29]} 25. dxe5 {[%emt 0:00:31]} Be7 {[%emt 0:00:54]} 26. Bd4 {[%emt 0:01:56]} Ra8 {[%emt 0:04:46]} 27. Qc3 {[%emt 0:05:31]} Na6 {[%emt 0:02:19]} 28. Qe3 {[%emt 0:02:40]} Nb4 {[%emt 0:02:26]} 29. Rac1 {[%emt 0:05:20]} c5 {[%emt 0:02:54]} 30. Bb2 {[%emt 0:07:17]} Nc6 {[%emt 0:07:00]} 31. Bc3 {[%emt 0:02:30]} Rac8 {[%emt 0:01:30]} 32. Be4 {[%emt 0:01:53]} Rd7 {[%emt 0:01:47]} 33. Qf3 {[%emt 0:01:46]} Bg5 {[%emt 0:02:53]} 34. Rb1 {[%emt 0:00:22]} a6 {[%emt 0:00:56]} 35. Rxd7 {[%emt 0:00:53]} Qxd7 {[%emt 0:00:03]} 36. Rd1 {[%emt 0:01:14]} Qc7 {[%emt 0:01:24]} 37. Bxc6 {[%emt 0:01:03]} bxc6 {[%emt 0:00:03]} 38. Rd3 {[%emt 0:02:05]} Rb8 {[%emt 0:00:43]} 39. Qd1 {[%emt 0:00:24]} Rb7 {[%emt 0:01:16]} 40. f4 {[%emt 0:00:00]} Be7 {[%emt 0:00:00]} 41. Be1 {[%emt 0:01:54]} Kh7 {[%emt 0:08:43]} 42. Qf3 {[%emt 0:02:37]} Qc8 {[%emt 0:02:36]} 43. Qd1 {[%emt 0:02:06]} Qc7 {[%emt 0:02:56]} 44. Bc3 {[%emt 0:01:11]} Kg8 {[%emt 0:04:00]} 45. Kg2 {[%emt 0:01:16]} Qb8 {[%emt 0:03:36]} 46. Be1 {[%emt 0:02:12]} Qc7 {[%emt 0:01:23]} 47. Bc3 {[%emt 0:00:57]} Qb8 {[%emt 0:00:35]} 48. Be1 {[%emt 0:02:28]} Qc7 {[%emt 0:00:23]} 49. Bc3 {[%emt 0:01:09]} Qb8 {[%emt 0:00:26]} 50. Be1 {[%emt 0:01:28]} 1/2-1/2

[Event "FIDE WCCC G12 2018"]
[Site "Santiago de Compostela"]
[Date "2018.11.12"]
[Round "8"]
[White "Mellor, Jessica"]
[Black "Karmanova, Olga Dm."]
[Result "1-0"]
[ECO "B23"]
[WhiteElo "1555"]
[BlackElo "1819"]
[Annotator "NA RC"]
[PlyCount "97"]
[EventDate "2018.11.04"]
[EventType "swiss"]
[EventCountry "ESP"]
[SourceTitle "playchess.com"]
[Source "ChessBase"]
[SourceQuality "1"]
[TimeControl "40/5400+30:1800+30"]

{[%evp 8,83,2,3,10,-21,17,-14,-34,-58,10,0,13,29,47,23,50,64,52,63,117,29,44,40,115,0,25,47,70,29,47,52,48,51,52,18,79,0,64,28,46,32767,110,0,43,0,122,0,0,0,0,0,0,0,32767,32767,30,22,37,18,32767,32767,91,100,355,601,303,620,683,1280,519,32767,1382,1378,32767,1892,32767,1912]} 1. e4 {[%emt 0:00:00]} c5 {[%emt 0:00:00]} 2. Nc3 {[%emt 0:00:00]} a6 {[%emt 0:00:03]} 3. f4 {[%emt 0:00:04]} b5 {[%emt 0:00:23]} 4. Nf3 {[%emt 0:00:45]} Bb7 {[%emt 0:00:29] LiveBook: 130 Games B23: Closed Sicilian: Lines without g3} 5. d3 {[%emt 0:00:24]} e6 {[%emt 0:00:18]} 6. g4 {[%emt 0:01:01]} d5 {[%emt 0:01:13]} 7. e5 {[%emt 0:05:24]} h5 {[%emt 0:04:56]} 8. gxh5 {[%emt 0:01:14]} Nh6 $146 {[%emt 0:05:57]} (8... Nc6 $15) ({Predecessor:} 8... Rxh5 9. Ne2 Ne7 10. Ng3 Rh8 11. h4 Nbc6 12. Bh3 {0-1 (35) Cicak,S (2579)-Blomqvist,E (2448) Stockholm 2013}) 9. Ne2 {[%emt 0:06:15]} d4 {[%emt 0:02:33]} 10. Ng3 {[%emt 0:01:22]} Be7 {[%emt 0:04:27]} 11. Bg2 {[%emt 0:01:16]} Nd7 {[%emt 0:01:54]} 12. O-O {[%emt 0:02:30]} Nb6 {[%emt 0:02:29]} 13. Qe2 {[%emt 0:10:17]} Nd5 {[%emt 0:02:00] [#]} ({Black should play} 13... Qd7 $14) 14. h3 {[%emt 0:05:39]} (14. f5 $1 $16 {[%mdl 512]}) 14... Rb8 {[%emt 0:07:30]} 15. Bd2 {[%emt 0:06:56]} Bf8 {[%emt 0:07:20] [#]} (15... Qb6 $11) 16. c3 {[%emt 0:04:15]} ({White should play} 16. f5 $1 $16 {[%mdl 512]}) 16... Ne7 {[%emt 0:01:51]} 17. cxd4 {[%emt 0:02:44]} cxd4 {[%emt 0:00:53]} 18. Rac1 {[%emt 0:06:51]} Nef5 {[%emt 0:01:48]} 19. Nxf5 {[%emt 0:00:35]} Nxf5 {[%emt 0:00:15]} 20. Kh2 {[%emt 0:02:24]} Be7 {[%emt 0:08:42]} 21. Rc2 {[%emt 0:05:52]} Bd5 {[%emt 0:04:27]} (21... Rc8 $11 22. Rxc8 Qxc8) 22. b3 {[%emt 0:03:05]} (22. Ng5 $16) 22... Bh4 {[%emt 0:02:19]} (22... Rxh5 $11 23. Ng5 g6) 23. Nxh4 {[%emt 0:04:35]} Qxh4 $5 {[%emt 0:00:41]} 24. Be1 {[%emt 0:03:10]} Qd8 {[%emt 0:10:34] [#]} 25. Bd2 {[%emt 0:04:29]} ({White should try} 25. Bxd5 $1 $16 Qxd5 26. Bd2) 25... Qh4 {[%emt 0:10:12]} 26. Be1 {[%emt 0:00:46]} Qd8 {[%emt 0:00:07]} 27. Bd2 {[%emt 0:00:19]} Bxg2 {[%emt 0:02:07]} 28. Kxg2 {[%emt 0:01:16]} Qh4 {[%emt 0:03:02]} 29. Qg4 {[%emt 0:01:28]} Rxh5 {[%emt 0:02:57]} 30. Qxh4 {[%emt 0:00:29]} Nxh4+ {[%emt 0:02:10]} 31. Kh2 {[%emt 0:00:47]} Kd7 {[%emt 0:00:52]} 32. Rfc1 {[%emt 0:02:07]} Nf3+ {[%emt 0:00:16]} 33. Kg3 {[%emt 0:01:20]} Nxd2 {[%emt 0:00:05]} 34. Rxd2 {[%emt 0:00:18]} Rhh8 {[%emt 0:04:29]} (34... Rbh8 $11 {remains equal.} 35. Rh2 f6) 35. Rdc2 {[%emt 0:00:34]} Rhc8 $2 {[%emt 0:00:10]} (35... Rb7 $16) 36. Rxc8 {[%emt 0:00:54]} Rxc8 {[%emt 0:00:03]} 37. Rxc8 {[%emt 0:00:12]} Kxc8 {[%emt 0:00:03]} 38. Kf3 {[%emt 0:00:14]} Kd7 {[%emt 0:00:56]} 39. Ke4 {[%emt 0:00:19]} g6 {[%emt 0:00:26]} 40. b4 {[%emt 0:00:00]} Kc6 {[%emt 0:00:00]} 41. Kxd4 {[%emt 0:00:50]} Kb6 {[%emt 0:00:47]} 42. a3 $18 {[%emt 0:01:08]} a5 {[%emt 0:03:36]} 43. Ke4 {[%emt 0:01:10]} axb4 {[%emt 0:00:31]} 44. axb4 {[%emt 0:00:31]} Kb7 {[%emt 0:00:15]} 45. d4 {[%emt 0:01:17]} Kc6 {[%emt 0:00:31]} 46. h4 {[%emt 0:00:12]} Kd7 {[%emt 0:00:59]} 47. d5 {[%emt 0:00:14]} exd5+ {[%emt 0:01:11]} 48. Kxd5 {[%emt 0:00:08]} Ke7 {[%emt 0:00:47]} 49. Kc5 {[%emt 0:00:30]} 1-0